bitfinex-derivatives/quotes_ETHF0:USTF0_20250614
["timestamp","ask_amount","ask_price","bid_price","bid_amount"]
[1749885116576,1.12777,2539.2,2539.1,0.06809268]
[1749885117072,9.33557,2539.2,2539.1,0.06809268]
[1749885117281,10.30723686,2539.2,2539.1,0.06809268]
[1749885119969,5.30723686,2539.2,2539.1,0.06809268]
[1749885120170,11.55423686,2539.2,2539.1,0.06809268]
[1749885120375,5.30723686,2539.2,2539.1,0.06809268]
[1749885120567,11.55423686,2539.2,2539.1,0.06809268]
[1749885120976,5.30723686,2539.2,2539.1,0.06809268]
[1749885121174,4.33557,2539.2,2539.1,0.06809268]
[1749885121772,2.09871666,2539.2,2539.1,0.06809268]
[1749885121982,4.33557,2539.2,2539.1,0.06809268]
[1749885122180,1.12777,2539.2,2539.1,0.06809268]
[1749885122386,3.2078,2539.2,2539.1,0.06809268]
[1749885122586,3.2078,2539.2,2539.1,0.54048268]
[1749885123385,3.68017,2539.2,2539.1,0.06809268]
[1749885123588,3.2078,2539.2,2539.1,0.54048268]
[1749885123879,3.68017,2539.2,2539.1,0.06809268]
[1749885127385,0.47237,2539.2,2539.1,0.06809268]
[1749885127590,3.68017,2539.2,2539.1,0.06809268]
[1749885132985,4.65273432,2539.2,2539.1,0.06809268]
[1749885133293,4.65130894,2539.2,2539.1,0.06809268]
[1749885137485,1.44350894,2539.2,2539.1,0.06809268]
[1749885137995,4.65130894,2539.2,2539.1,0.06809268]
[1749885138987,4.65289961,2539.2,2539.1,0.06809268]
[1749885140096,0.47242,2538.9,2538.8,0.0059004]
[1749885140297,4.65294961,2538.9,2538.8,0.0059004]
[1749885140691,6.68374961,2538.9,2538.8,0.0059004]
[1749885141190,0.4725,2538.5,2538.2,8.59609098]
[1749885141497,0.47253,2538.4,2538.2,1.14895]
[1749885141698,1.10683,2538.4,2538.2,0.47255]
[1749885142898,0.6343,2538.4,2538.2,0.47255]
[1749885143196,0.6343,2538.4,2538.3,0.47254]
[1749885143397,3.6861804,2538.6,2538.4,0.47251]
[1749885143992,0.4725,2538.5,2538.3,0.47253]
[1749885144291,0.0059004,2538.6,2538.5,0.4725]
[1749885144799,0.0059004,2538.6,2538.2,2.34909098]
[1749885144996,0.0059004,2538.6,2538.3,0.47253]
[1749885145298,0.47251,2538.5,2538.3,0.47253]
[1749885145499,0.0059004,2538.6,2538.2,0.47255]
[1749885145695,0.47251,2538.5,2538.1,9.27249098]
[1749885145998,0.47251,2538.5,2538.2,0.47256]
[1749885146199,1.12642,2538.4,2538.2,0.47256]
[1749885147100,0.6539,2538.4,2538.3,0.47254]
[1749885147301,1.12642,2538.4,2538.2,0.47254]
[1749885147501,0.6539,2538.4,2538.2,0.47254]
[1749885147701,1.12642,2538.4,2538.2,0.47254]
[1749885148002,0.6539,2538.4,2538.2,0.47254]
[1749885148803,0.6539,2538.4,2538.3,0.47254]
[1749885149799,0.0059004,2538.6,2538.5,0.4725]
[1749885150395,0.0059004,2538.6,2538.5,1.1547]
[1749885150598,0.0059004,2538.6,2538.5,2.5156]
[1749885150797,0.0059004,2538.6,2538.5,4.86469098]
[1749885151101,3.2078,2539.0,2538.9,0.47242]
[1749885154804,3.2078,2539.0,2538.9,0.54051268]
[1749885157609,0.0059004,2539.2,2539.0,0.47239]
[1749885157809,0.0059004,2539.2,2539.0,2.0451]
[1749885158002,0.0059004,2539.2,2539.1,0.47239]
[1749885158404,0.0059004,2539.2,2539.1,1.82929]
[1749885161309,0.0059004,2539.2,2539.1,1.3569]
[1749885161508,0.0059004,2539.2,2539.0,1.79]
[1749885161905,0.0059004,2539.2,2539.1,0.47239]
[1749885164106,0.4782704,2539.2,2539.0,1.79]
[1749885164306,0.0059004,2539.2,2539.0,1.3176]
[1749885164507,0.0059004,2539.2,2539.0,1.78999]
[1749885164907,0.4782704,2539.2,2539.0,1.78999]
[1749885166215,0.47241,2539.0,2538.9,0.06809268]
[1749885166908,1.72291,2539.0,2538.9,0.06809268]
[1749885170016,0.47243,2538.9,2538.7,0.47246]
[1749885170916,0.47242,2539.0,2538.8,0.47244]
[1749885171126,5.02289,2539.1,2539.0,0.06809268]
[1749885171525,6.32369,2539.1,2539.0,0.06809268]
[1749885175718,5.02289,2539.1,2539.0,0.06809268]
[1749885178929,7.31652402,2539.1,2539.0,0.06809268]
[1749885190039,7.31680333,2539.1,2539.0,0.06809268]
[1749885190441,5.99540333,2539.1,2539.0,0.06809268]
[1749885190642,4.18031333,2539.1,2539.0,0.54050268]
[1749885190842,3.2078,2539.1,2539.0,0.54050268]
[1749885191743,3.2078,2539.1,2539.0,0.06809268]
[1749885192239,3.2078,2539.1,2539.0,0.54050268]
[1749885193143,3.2078,2539.1,2539.0,0.06809268]
[1749885193840,3.68019,2539.1,2539.0,0.06809268]
[1749885194041,3.2078,2539.1,2539.0,0.54050268]
[1749885194246,3.2078,2539.1,2539.0,0.06809268]
[1749885195141,3.2078,2539.1,2539.0,0.54050268]
[1749885195449,3.2078,2539.1,2539.0,0.06809268]
[1749885196045,3.2078,2539.1,2539.0,0.54050268]
[1749885197050,0.0059004,2539.2,2539.1,0.47239]
[1749885197352,0.0059004,2539.2,2539.1,3.00399]
[1749885211857,0.0059004,2539.2,2539.1,1.2678]
[1749885211858,0.4782704,2539.2,2539.1,1.2678]
[1749885212060,0.4782704,2539.2,2539.1,1.74019]
[1749885212265,0.0059004,2539.2,2539.1,1.74019]
[1749885215256,0.0059004,2539.2,2539.1,1.2678]
[1749885215566,0.0059004,2539.2,2539.1,1.74019]
[1749885215758,0.0059004,2539.2,2539.1,1.80828268]
[1749885216763,0.0059004,2539.2,2539.1,0.06809268]
[1749885216955,0.0059004,2539.2,2538.7,3.2078]
[1749885216956,5.97809305,2539.2,2538.3,0.0059004]
[1749885217161,3.2078,2538.4,2538.3,0.0059004]
[1749885217464,9.4498,2538.7,2538.3,0.4784404]
[1749885217660,2.10826092,2538.6,2538.3,0.4784404]
[1749885217969,0.6641,2538.6,2538.4,0.47251]
[1749885218461,0.6641,2538.6,2538.5,0.4725]
[1749885219261,0.6641,2538.6,2538.3,0.0059004]
[1749885219563,0.6641,2538.6,2538.4,0.47251]
[1749885220158,0.6641,2538.6,2538.5,0.4725]
[1749885220665,0.6641,2538.6,2538.4,0.47251]
[1749885220866,0.6641,2538.6,2538.5,0.4725]
[1749885224362,1.13658,2538.6,2538.4,0.4725]
[1749885224567,0.4725,2538.5,2538.3,0.0059004]
[1749885224761,0.47252,2538.4,2538.3,30.3759004]
[1749885224962,0.47252,2538.4,2538.3,0.0059004]
[1749885225563,4.35812,2538.4,2538.3,0.0059004]
[1749885226774,5.3396618,2538.4,2538.3,0.0059004]
[1749885229381,4.35812,2538.4,2538.3,0.0059004]
[1749885230074,4.35812,2538.4,2538.3,0.07399308]
[1749885242382,5.33913943,2538.4,2538.3,0.07399308]
[1749885242584,4.35812,2538.4,2538.3,0.07399308]
[1749885242785,5.33913878,2538.4,2538.3,0.07399308]
[1749885242985,5.33913603,2538.4,2538.3,0.07399308]
[1749885243285,5.33916423,2538.4,2538.3,0.07399308]
[1749885244287,4.35812,2538.4,2538.3,0.07399308]
[1749885244481,5.34002088,2538.4,2538.3,0.07399308]
[1749885247790,6.70002088,2538.4,2538.3,0.07399308]
[1749885249788,12.94002088,2538.4,2538.3,0.07399308]
[1749885249990,11.58002088,2538.4,2538.3,0.07399308]
[1749885252391,5.34002088,2538.4,2538.3,0.07399308]
[1749885252590,11.58002088,2538.4,2538.3,0.07399308]
[1749885256292,11.5836937,2538.4,2538.3,0.07399308]
[1749885263203,12.8713937,2538.4,2538.3,0.07399308]
[1749885264408,0.47257,2538.1,2538.0,0.6463]
[1749885264705,4.6659437,2538.1,2538.0,0.6463]
[1749885267703,4.1933737,2538.1,2537.7,6.73664]
[1749885267909,0.9855737,2538.0,2537.8,0.6834]
[1749885268206,1.4581837,2537.9,2537.8,0.6834]
[1749885268409,1.4581837,2537.9,2537.8,2.0094]
[1749885268810,1.4581837,2537.9,2537.8,2.48203]
[1749885268811,0.9855737,2537.9,2537.8,2.48203]
[1749885269106,1.4581837,2537.9,2537.8,2.0094]
[1749885271406,4.59547771,2538.5,2537.8,10.2172]
[1749885271707,0.0059004,2539.2,2539.1,0.47239]
[1749885272012,3.2078,2539.8,2539.0,5.56773226]
[1749885272204,3.2078,2539.8,2539.1,1.2476]
[1749885272405,0.4723,2539.6,2539.3,0.47234]
[1749885272608,0.47231,2539.5,2539.4,1.2476]
[1749885272811,3.2078,2539.8,2539.4,1.2476]
[1749885273300,0.47231,2539.5,2539.4,1.2476]
[1749885273502,0.47231,2539.6,2539.4,1.2476]
[1749885273700,0.47231,2539.5,2539.4,1.2476]
[1749885274311,0.47228,2539.7,2539.4,1.71992]
[1749885274607,0.4723,2539.6,2539.4,1.71992]
[1749885274806,0.4723,2539.6,2539.4,1.2476]
[1749885275002,0.47231,2539.5,2539.4,1.2476]
[1749885275910,0.47233,2539.4,2539.3,0.0059004]
[1749885276109,1.09763,2539.4,2539.3,0.0059004]
[1749885277610,2.42803,2539.4,2539.3,0.0059004]
[1749885282311,1.09763,2539.4,2539.3,0.0059004]
[1749885283208,0.47233,2539.4,2539.3,0.0059004]
[1749885287830,2.48933,2539.4,2539.3,0.0059004]
[1749885290719,2.48933,2539.4,2539.3,0.07399308]
[1749885291128,8.72533,2539.4,2539.3,0.07399308]
[1749885291330,0.47248,2538.6,2538.3,3.2078]
[1749885291531,0.47248,2538.6,2538.4,0.47251]
[1749885292024,0.4725,2538.5,2538.3,3.68033]
[1749885292229,0.6737,2538.8,2538.2,47.50854]
[1749885292419,0.47253,2538.4,2538.2,6.236]
[1749885292624,0.6564,2538.7,2538.2,6.236]
[1749885292625,3.2137004,2538.6,2538.2,6.236]
[1749885292831,1.346,2538.5,2538.2,6.236]
[1749885293130,0.47255,2538.3,2538.1,0.47256]
[1749885293631,0.47253,2538.4,2538.1,0.47256]
[1749885294334,1.346,2538.5,2538.0,3.8615]
[1749885294530,9.9221904,2538.6,2538.1,1.262]
[1749885295032,0.4725,2538.5,2538.2,0.47254]
[1749885295231,0.47252,2538.4,2538.2,0.47254]
[1749885295832,0.47254,2538.3,2538.1,0.47256]
[1749885296623,0.47253,2538.4,2538.1,0.47256]
[1749885297027,0.47253,2538.4,2538.0,3.8615]
[1749885297240,1.75271,2538.5,2538.3,0.47254]
[1749885297434,0.47251,2538.5,2538.3,0.47254]
[1749885298025,0.4725,2538.5,2538.3,0.47253]
[1749885298836,0.47252,2538.4,2538.2,0.47255]
[1749885299328,3.2137004,2538.6,2538.3,0.47252]
[1749885299329,0.47251,2538.5,2538.3,0.47252]
[1749885299635,0.47253,2538.4,2538.2,0.47255]
[1749885300333,3.2137004,2538.6,2538.0,6.41718]
[1749885300636,0.0059004,2538.6,2538.5,0.4725]
[1749885301333,0.0059004,2538.6,2538.5,2.4151]
[1749885301636,3.2078,2538.9,2538.5,6.9426]
[1749885301835,3.2078,2538.9,2538.5,1.9426]
[1749885302038,3.2078,2538.9,2538.8,0.47244]
[1749885302239,3.2078,2538.9,2538.2,2.35993226]
[1749885302441,0.47252,2538.4,2538.2,0.47255]
[1749885304234,0.6353,2538.5,2538.4,0.47252]
[1749885304536,0.0059004,2538.6,2538.5,0.4725]
[1749885305241,0.0059004,2538.6,2538.5,1.1244]
[1749885305938,0.0059004,2538.6,2538.5,2.4352]
[1749885306330,3.2078,2538.9,2538.8,0.47244]
[1749885308942,0.0059004,2539.1,2539.0,0.47241]
[1749885310135,0.0059004,2539.1,2539.0,9.91521]
[1749885310537,0.6509,2539.5,2539.4,0.47233]
[1749885310939,3.2078,2539.6,2539.5,0.47231]
[1749885311447,3.2078,2539.6,2539.4,0.47232]
[1749885311837,3.2078,2539.6,2539.5,0.47231]
[1749885312333,3.6801,2539.6,2539.4,0.47232]
[1749885313142,3.2078,2539.6,2539.5,0.47231]
[1749885313747,0.0059004,2539.8,2539.4,9.4418]
[1749885314042,0.0059004,2539.8,2539.7,0.47228]
[1749885315237,0.0059004,2539.8,2539.7,2.50088]
[1749885317345,0.0059004,2539.8,2539.7,2.0286]
[1749885317538,0.0059004,2539.8,2539.7,2.50088]
[1749885318744,0.0059004,2539.8,2539.7,5.70868]
[1749885324048,0.4722,2540.1,2539.7,5.2364]
[1749885324347,3.8667,2540.2,2539.7,5.2364]
[1749885324348,0.47222,2540.0,2539.8,0.47225]
[1749885326746,0.47221,2540.1,2539.9,0.47223]
[1749885326946,0.47223,2540.0,2539.8,0.47225]
[1749885327354,0.47221,2540.1,2539.9,0.47223]
[1749885327845,0.47223,2540.0,2539.8,0.47225]
[1749885330252,0.47224,2539.9,2539.7,4.34037]
[1749885330447,0.47223,2540.0,2539.7,3.8681]
[1749885330654,0.47222,2540.0,2539.8,0.47224]
[1749885330851,0.47224,2539.9,2539.8,0.47224]
[1749885331151,0.47224,2539.9,2539.8,0.47226]
[1749885331653,0.47225,2539.9,2539.7,3.8681]
[1749885332651,0.47225,2539.9,2539.7,4.34036]
[1749885332851,0.47225,2539.9,2539.7,3.8681]
[1749885333049,1.18062,2539.9,2539.4,3.2078]
[1749885333247,0.47233,2539.4,2539.3,0.0059004]
[1749885334254,1.37259268,2539.8,2539.5,0.47231]
[1749885334454,0.47228,2539.7,2539.5,0.47231]
[1749885334852,0.47228,2539.7,2539.4,1.09232]
[1749885336754,1.3045,2539.8,2539.5,0.4723]
[1749885336954,0.47229,2539.7,2539.4,1.09232]
[1749885337155,0.47228,2539.7,2539.5,0.4723]
[1749885337558,0.47231,2539.5,2539.4,0.62]
[1749885337856,0.47231,2539.6,2539.4,0.62]
[1749885338059,0.47231,2539.6,2539.4,1.09233]
[1749885338545,1.3045,2539.8,2539.5,0.47231]
[1749885338855,1.77676,2539.8,2539.5,0.47231]
[1749885339151,0.47228,2539.7,2539.5,0.47231]
[1749885339561,1.3045,2539.8,2539.5,0.47231]
[1749885339755,1.77677,2539.8,2539.5,0.47231]
[1749885339956,1.3045,2539.8,2539.6,30.299]
[1749885340157,1.3045,2539.8,2539.6,30.77129]
[1749885341654,1.3045,2539.8,2539.6,6.231]
[1749885341847,0.47228,2539.7,2539.6,30.299]
[1749885342756,2.6516,2539.8,2539.6,30.299]
[1749885343057,2.6516,2539.8,2539.6,30.77128]
[1749885343256,2.6516,2539.8,2539.6,33.97908]
[1749885343456,2.6516,2539.8,2539.6,33.5068]
[1749885343656,3.12387,2539.8,2539.6,30.299]
[1749885344662,0.47228,2539.7,2539.6,30.299]
[1749885348158,3.12387,2539.8,2539.6,30.299]
[1749885348461,0.47228,2539.7,2539.6,30.299]
[1749885350063,3.12386,2539.8,2539.6,30.77128]
[1749885350265,1.77676,2539.8,2539.6,30.77128]
[1749885350464,0.47228,2539.7,2539.6,30.77128]
[1749885350665,1.77677,2539.8,2539.6,30.298]
[1749885350865,0.47228,2539.7,2539.6,30.298]
[1749885352963,1.3045,2539.8,2539.6,30.77029]
[1749885353163,1.3045,2539.8,2539.7,0.47228]
[1749885353370,1.60434236,2539.8,2539.7,0.47228]
[1749885353662,0.47225,2539.9,2539.7,0.47228]
[1749885353864,0.47226,2539.8,2539.6,12.27101226]
[1749885354165,0.47226,2539.8,2539.7,24.067]
[1749885354665,0.47224,2539.9,2539.7,24.53928]
[1749885356964,0.47226,2539.8,2539.7,24.53928]
[1749885357156,0.47224,2539.9,2539.7,24.53928]
[1749885357460,0.47224,2539.9,2539.8,0.6666]
[1749885357661,1.4480583,2539.9,2539.8,0.6666]
[1749885359160,0.47226,2539.8,2539.7,24.067]
[1749885363168,0.47228,2539.7,2539.6,12.46433226]
[1749885363369,0.47228,2539.7,2539.6,30.9606]
[1749885363570,0.47229,2539.6,2539.5,2.35993226]
[1749885363770,1.11099,2539.6,2539.5,30.294]
[1749885364671,0.6387,2539.6,2539.5,24.064]
[1749885364968,1.3028,2539.6,2539.5,24.064]
[1749885365161,1.77509,2539.6,2539.5,24.064]
[1749885365358,2.7510398,2539.6,2539.5,24.064]
[1749885365559,0.47231,2539.5,2539.4,6.23]
[1749885365759,0.47231,2539.5,2539.4,30.293]
[1749885365760,1.44809773,2539.5,2539.4,30.293]
[1749885365964,2.72459773,2539.5,2539.4,30.293]
[1749885366164,0.47233,2539.4,2539.3,0.0059004]
[1749885366367,4.65592198,2539.4,2539.3,0.0059004]
[1749885366568,10.99032198,2539.4,2539.3,0.0059004]
[1749885367068,0.47244,2538.8,2538.7,3.2078]
[1749885367267,0.47244,2538.8,2538.7,24.064]
[1749885367466,3.2078,2539.1,2538.7,24.064]
[1749885367467,3.2078,2539.1,2538.8,0.47244]
[1749885367675,3.2078,2539.1,2538.7,24.53645]
[1749885367676,2.46951,2539.0,2538.7,24.53645]
[1749885368269,2.46951,2539.0,2538.7,24.064]
[1749885368471,2.46951,2539.0,2538.8,0.47244]
[1749885368874,2.46951,2539.0,2538.7,24.53646]
[1749885369075,1.9971,2539.0,2538.7,24.53646]
[1749885369267,0.47243,2538.9,2538.7,24.53646]
[1749885369572,0.47243,2538.9,2538.8,24.063]
[1749885371080,1.13512,2539.0,2538.8,24.063]
[1749885371272,0.6627,2539.0,2538.8,24.063]
[1749885371874,1.13511,2539.0,2538.8,24.063]
[1749885372074,0.6627,2539.0,2538.8,24.063]
[1749885372284,0.47242,2538.9,2538.8,24.063]
[1749885373776,0.6627,2539.0,2538.8,24.063]
[1749885373974,0.47246,2538.7,2538.6,0.0059004]
[1749885375975,1.75196,2538.7,2538.6,0.0059004]
[1749885377685,0.47246,2538.7,2538.6,0.0059004]
[1749885377879,0.6627,2539.0,2538.6,0.4783704]
[1749885378079,1.9422,2539.0,2538.6,0.4783704]
[1749885378280,0.47245,2538.8,2538.6,0.4783704]
[1749885378479,0.47245,2538.8,2538.7,0.6758]
[1749885379294,0.47245,2538.8,2538.6,0.0059004]
[1749885379295,0.47246,2538.7,2538.6,0.0059004]
[1749885379481,1.79596,2538.7,2538.6,0.0059004]
[1749885383688,0.47246,2538.7,2538.6,0.0059004]
[1749885386393,0.6627,2539.0,2538.6,0.4783704]
[1749885386994,0.6627,2539.0,2538.6,0.0059004]
[1749885387193,0.47246,2538.7,2538.6,0.6315004]
[1749885387400,0.6627,2539.0,2538.6,0.6315004]
[1749885387600,0.6627,2539.0,2538.8,0.47243]
[1749885387601,1.13511,2539.0,2538.8,0.47243]
[1749885387796,3.2078,2539.1,2538.8,0.47243]
[1749885388193,3.2078,2539.1,2539.0,0.47241]
[1749885389509,1.74954,2539.4,2539.1,0.47238]
[1749885389899,0.47235,2539.3,2539.0,0.4724]
[1749885390397,1.74954,2539.4,2539.2,0.47237]
[1749885390599,1.74954,2539.4,2539.1,0.6639]
[1749885390600,0.47237,2539.2,2539.1,0.6639]
[1749885390801,0.47239,2539.1,2538.9,42.51602]
[1749885390997,0.47239,2539.1,2538.9,43.15672]
[1749885391205,0.47238,2539.2,2539.0,0.47241]
[1749885394209,0.47239,2539.2,2539.0,0.47241]
[1749885394409,0.47239,2539.2,2538.9,43.15672]
[1749885394704,0.47239,2539.1,2538.9,43.15672]
[1749885399116,0.47241,2539.0,2538.9,0.6407]
[1749885399714,1.3485,2539.3,2538.9,1.11313]
[1749885399715,0.4724,2539.1,2538.9,1.11313]
[1749885400415,0.47238,2539.2,2538.9,0.6407]
[1749885400618,0.47238,2539.2,2539.0,1.2603]
[1749885400917,0.47238,2539.2,2539.0,1.9266]
[1749885401216,0.47238,2539.2,2539.0,2.39899]
[1749885402815,0.47236,2539.3,2539.1,0.47238]
[1749885403015,0.47236,2539.3,2539.0,1.9266]
[1749885403216,0.47237,2539.2,2539.1,0.47238]
[1749885404117,0.47237,2539.2,2539.0,2.39899]
[1749885404714,0.47237,2539.2,2539.0,2.399]
[1749885404715,0.47238,2539.2,2539.0,2.399]
[1749885405418,1.74955,2539.4,2539.2,0.47237]
[1749885405613,0.47231,2539.6,2539.4,0.47233]
[1749885406010,3.8801,2539.8,2539.2,3.2078]
[1749885406320,0.47246,2538.7,2538.1,5.56805729]
[1749885407922,5.95385202,2538.7,2538.6,0.0059004]
[1749885411416,0.47259,2538.1,2537.8,9.4348]
[1749885411616,0.47259,2538.1,2537.8,33.5048]
[1749885411822,3.2078,2538.4,2537.9,40.8]
[1749885412019,0.47257,2538.1,2537.9,41.2726]
[1749885412414,0.47257,2538.1,2537.9,0.4726]
[1749885412615,0.6339,2538.2,2538.0,0.47258]
[1749885412816,0.47257,2538.1,2537.9,0.4726]
[1749885414327,0.6339,2538.2,2538.1,0.47257]
[1749885414519,0.6339,2538.2,2537.9,0.4726]
[1749885414827,1.10647,2538.2,2537.9,0.4726]
[1749885415015,1.10647,2538.2,2538.0,0.47259]
[1749885416929,0.47258,2538.1,2537.9,0.4726]
[1749885417131,0.47258,2538.1,2537.9,0.47261]
[1749885417322,1.10647,2538.2,2537.9,0.47261]
[1749885417831,1.10647,2538.2,2538.0,0.47259]
[1749885418134,0.47257,2538.1,2537.9,0.4726]
[1749885418429,0.47257,2538.1,2538.0,0.47259]
[1749885418928,0.6339,2538.2,2537.8,33.5048]
[1749885419128,1.10647,2538.2,2538.0,0.47259]
[1749885419431,0.47257,2538.1,2537.9,0.4726]
[1749885419729,0.47257,2538.1,2538.0,0.47258]
[1749885419922,1.10646,2538.2,2538.0,0.47258]
[1749885420330,0.47257,2538.1,2538.0,0.47258]
[1749885420630,0.47257,2538.1,2538.0,0.47259]
[1749885420830,0.47257,2538.1,2537.9,24.5426]
[1749885421334,0.47257,2538.1,2538.0,0.47259]
[1749885421530,1.10647,2538.2,2538.0,0.47259]
[1749885421933,0.0059004,2538.3,2537.9,24.07]
[1749885422127,0.4784504,2538.3,2538.1,0.47257]
[1749885422436,0.0059004,2538.3,2538.1,1.11947]
[1749885422731,0.6359,2538.2,2538.1,1.11947]
[1749885424035,0.0059004,2538.3,2538.2,0.47256]
[1749885424233,0.0059004,2538.3,2538.2,8.61246]
[1749885424734,0.0059004,2538.3,2538.2,7.32376]
[1749885427636,0.0059004,2538.3,2538.2,25.22676]
[1749885427835,0.0059004,2538.3,2538.2,25.22176]
[1749885428436,0.0059004,2538.3,2538.2,25.22076]
[1749885429235,0.0059004,2538.3,2538.2,32.81006]
[1749885429439,0.0059004,2538.3,2538.2,32.80606]
[1749885430737,0.0059004,2538.3,2538.2,36.01386]
[1749885434834,0.6751,2538.7,2538.6,0.47248]
[1749885435035,0.6751,2538.7,2538.6,24.57448]
[1749885435437,1.14756,2538.7,2538.6,24.102]
[1749885440048,1.21565268,2538.7,2538.6,24.102]
[1749885440848,1.21565268,2538.7,2538.6,24.57448]
[1749885440849,0.06809268,2538.7,2538.6,24.57448]
[1749885449957,0.06809268,2538.7,2538.6,25.84578]
[1749885450864,0.06809268,2538.7,2538.6,30.82148]
[1749885451160,1.3013004,2538.9,2538.6,0.47248]
[1749885451358,0.47244,2538.8,2538.7,24.067]
[1749885451562,2.72903819,2538.8,2538.7,24.067]
[1749885452263,0.54056268,2538.7,2538.6,24.067]
[1749885452461,1.90786268,2538.7,2538.6,24.067]
[1749885453264,2.42184147,2538.7,2538.6,24.53948]
[1749885453466,1.43539268,2538.7,2538.6,24.53948]
[1749885454262,2.42176506,2538.7,2538.6,24.53948]
[1749885454766,1.43539268,2538.7,2538.6,24.53948]
[1749885456767,1.43539268,2538.7,2538.6,0.47248]
[1749885456962,1.43539268,2538.7,2538.6,24.53948]
[1749885459068,2.42266745,2538.7,2538.6,24.53948]
[1749885461371,5.63046745,2538.7,2538.3,0.47253]
[1749885461570,2.26577477,2538.6,2538.3,24.067]
[1749885461866,3.2078,2538.4,2537.7,53.40292204]
[1749885462166,0.47258,2538.1,2537.9,0.47261]
[1749885462667,0.6213,2538.0,2537.9,24.53961]
[1749885464972,0.6213,2538.0,2537.7,50.2607004]
[1749885465269,0.6213,2538.0,2537.9,24.54161]
[1749885466865,0.654,2538.3,2537.9,24.069]
[1749885467063,1.2779,2538.3,2538.2,0.47256]
[1749885467265,3.68032,2538.4,2538.3,0.47254]
[1749885467266,3.2078,2538.4,2538.3,0.47254]
[1749885467565,3.8278,2538.8,2538.3,24.069]
[1749885467770,3.8278,2538.8,2538.6,0.47246]
[1749885467959,3.8278,2538.8,2538.6,24.069]
[1749885468163,4.30024,2538.8,2538.6,24.069]
[1749885468363,4.30024,2538.8,2538.6,24.54147]
[1749885468770,0.6239,2538.7,2538.6,24.54147]
[1749885469670,0.6239,2538.7,2538.6,24.069]
[1749885470872,0.6239,2538.7,2538.6,24.54148]
[1749885478784,1.09636,2538.7,2538.6,24.069]
[1749885479381,1.09636,2538.7,2538.5,0.4725]
[1749885480487,1.09636,2538.7,2538.6,0.47248]
[1749885480890,1.09636,2538.7,2538.5,0.47249]
[1749885483090,1.09636,2538.7,2538.6,0.47248]
[1749885483283,1.09636,2538.7,2538.5,0.47248]
[1749885483588,3.8278,2538.8,2538.7,0.47246]
[1749885483789,3.2078,2538.8,2538.7,0.47246]
[1749885483988,1.1484304,2538.9,2538.7,0.47246]
[1749885484593,0.6760004,2538.9,2538.8,0.47244]
[1749885484887,1.1484304,2538.9,2538.8,0.47244]
[1749885485089,1.1484304,2538.9,2538.7,0.47244]
[1749885485591,0.47244,2538.8,2538.6,1.75707]
[1749885485786,0.47249,2538.6,2538.5,24.065]
[1749885486090,0.47247,2538.7,2538.5,24.5375]
[1749885486790,0.47247,2538.7,2538.6,0.47248]
[1749885487792,1.74655,2538.8,2538.6,0.47248]
[1749885487987,1.74655,2538.8,2538.5,24.065]
[1749885488188,0.47246,2538.7,2538.5,24.065]
[1749885488387,0.47246,2538.7,2538.5,24.53749]
[1749885488587,1.74656,2538.8,2538.6,0.47248]
[1749885488993,1.74656,2538.8,2538.7,0.47246]
[1749885489194,1.74655,2538.8,2538.6,0.47247]
[1749885489390,0.6760004,2538.9,2538.5,24.065]
[1749885489598,0.6760004,2538.9,2538.8,0.47244]
[1749885490096,0.6760004,2538.9,2538.7,0.47245]
[1749885490494,1.1484304,2538.9,2538.7,0.47245]
[1749885496191,0.9858216,2538.8,2538.7,0.47245]
[1749885496893,0.0059004,2538.9,2538.8,0.47244]
[1749885497098,0.0059004,2538.9,2538.8,2.43744]
[1749885498892,0.6716,2539.3,2539.2,0.47237]
[1749885499594,0.4723,2539.6,2539.4,0.47232]
[1749885499810,0.6716,2539.6,2539.4,0.47232]
[1749885500010,0.6675,2539.7,2539.2,0.6320004]
[1749885500320,0.6675,2539.7,2539.5,0.47231]
[1749885500823,0.6675,2539.7,2539.2,8.2073004]
[1749885501115,0.6675,2539.7,2539.5,0.4723]
[1749885501312,3.02807872,2539.8,2539.7,0.47228]
[1749885501817,0.6775004,2539.8,2539.7,0.47228]
[1749885502111,0.6775004,2539.8,2539.2,0.6320004]
[1749885502316,0.47235,2539.3,2539.2,0.0059004]
[1749885502811,1.45926634,2539.3,2539.2,0.0059004]
[1749885503217,0.98691634,2539.3,2539.2,0.0059004]
[1749885503516,1.11553,2539.4,2539.2,0.4782604]
[1749885504613,0.6432,2539.4,2539.2,0.4782604]
[1749885505017,1.11553,2539.4,2539.2,0.4782604]
[1749885506121,0.6432,2539.4,2539.2,0.4782604]
[1749885506321,1.11553,2539.4,2539.2,0.4782604]
[1749885507321,0.6432,2539.4,2539.2,0.4782604]
[1749885507921,0.6432,2539.4,2539.3,0.47235]
[1749885508223,3.6801,2539.6,2539.3,0.47234]
[1749885508422,0.6331,2539.5,2539.3,0.47234]
[1749885508723,0.6331,2539.5,2539.4,0.47233]
[1749885508917,0.6331,2539.5,2539.3,0.47234]
[1749885509116,0.6331,2539.5,2539.4,0.47233]
[1749885509623,0.6331,2539.5,2539.3,0.47234]
[1749885509820,0.6331,2539.5,2539.2,0.0059004]
[1749885510016,0.6331,2539.5,2539.4,0.47233]
[1749885511725,0.6461,2539.7,2539.6,0.47229]
[1749885512025,0.6619004,2539.8,2539.7,0.47228]
[1749885512527,0.0059004,2539.8,2539.7,0.47228]
[1749885523831,0.0059004,2539.8,2539.7,3.68008]
[1749885524234,0.0059004,2539.8,2539.7,4.33218]
[1749885525541,0.6824,2540.3,2540.2,0.47218]
[1749885528233,61.73779749,2540.3,2539.3,3.1470654]
[1749885528541,0.47235,2539.3,2538.4,3.2078]
[1749885529046,6.45574749,2539.3,2538.5,6.219]
[1749885529245,7.80544749,2539.3,2538.5,6.219]